Cogmind - Beta 10.1 @@@ ROGUE MODE // 2020.10.09 @ 19:51:48 Player: Pimski Result: Destroyed by as-78507 with Assembled Focal Cannon Performance ------------- Evolutions (3) 1500 Regions Visited (10) 2000 Robots Destroyed (99) 495 Value Destroyed (1689) 1689 Prototype IDs (36) 720 Alien Tech Used (0) 0 Bonus (994) 994 TOTAL SCORE: 7398 Bonus ------- Aligned with FarCom 300 Met Imprinter 300 Destroyed Z-Imprinter 1000 Triggered Deep Caves Wall 500 Friendly Fire -1106 Cogmind --------- Core Integrity 0/700 Matter 255/300 Energy 976/1100 System Corruption 0% Temperature Cool (19) Movement Core (100) Ox1 Location -7/Deep Caves Parts ------- > --- POWER (1) -------- (None) > --- PROPULSION (4) --- (None) > --- UTILITY (6) ------ Zionite Biocell Long-range Sensor Array Improved Signal Interpreter Makeshift Hacking Suite Makeshift Hacking Suite > --- WEAPON (2) ------- CR-A16's Pointy Stick > --- INVENTORY (4) ---- Makeshift Power Source Zionite Metafield Generator Rocket Launcher Field Lobotomy Kit Peak State ------------ > --- POWER ------------ Makeshift Power Source > --- PROPULSION ------- Improved Flight Unit Improved Flight Unit Improved Flight Unit Improved Flight Unit > --- UTILITY ---------- Medium Storage Unit Improved Signal Interpreter Improved Melee Analysis Suite Improved Melee Analysis Suite Bomb Factory No. 2 > --- WEAPON ----------- Longsword +1 CR-A16's Pointy Stick > --- INVENTORY -------- Makeshift Power Source Light Angular Momentum Engine Improved Flight Unit Makeshift System Shield Hacking Drone Bay AWS/Thermal Rocket Launcher [Rating: 55] Favorites ----------- Power Light Ion Engine Engine Light Ion Engine Power Core Light Nuclear Core Propulsion Light Treads Treads Light Treads Leg Aluminum Leg Hover Unit Zionite Glidesys II Flight Unit Improved Flight Unit Utility Large Storage Unit Device Long-range Sensor Array Storage Large Storage Unit Processor Improved Melee Analysis Suite Hackware Hacking Suite Protection Medium Armor Plating Weapon Assault Rifle Energy Gun Small Laser Ballistic Gun Assault Rifle Ballistic Cannon Light Cannon Launcher Rocket Launcher Slashing Weapon Longsword +1 Piercing Weapon CR-A16's Pointy Stick Build | -11 -10 -10 -10 -9 -8 -7 -7 -7 -7 -7 ------- Run | Scr Mat Min Exi Min Mat Fac Low Low Zio Dee Slots Evolved 6 | . . . . . 4 2 . . . . Power . | . . . . . . . . . . . Propulsion 2 | . . . . . . 2 . . . . Utility 4 | . . . . . 4 . . . . . Weapon . | . . . . . . . . . . . Parts Attached 89 | 1 22 5 1 1 13 17 2 2 5 20 Power 6 | . 1 3 . . 1 1 . . . . Engine 5 | . 1 3 . . . 1 . . . . Core 1 | . . . . . 1 . . . . . Reactor . | . . . . . . . . . . . Propulsion 18 | . 5 1 . 1 2 7 . . . 2 Treads 11 | . 5 1 . 1 1 3 . . . . Leg . | . . . . . . . . . . . Wheel . | . . . . . . . . . . . Hover 1 | . . . . . . . . . . 1 Flight 6 | . . . . . 1 4 . . . 1 Utility 37 | 1 5 . . . 8 7 1 . 4 11 Device 9 | 1 . . . . 1 1 . . 2 4 Storage 11 | . 5 . . . 2 2 . . . 2 Processor 3 | . . . . . . 2 1 . . . Hackware 4 | . . . . . . 2 . . . 2 Protection 10 | . . . . . 5 . . . 2 3 Artifact . | . . . . . . . . . . . Weapon 28 | . 11 1 1 . 2 2 1 2 1 7 Energy Gun 6 | . 4 . . . . . . . . 2 Energy Cannon . | . . . . . . . . . . . Ballistic Gun 8 | . 4 1 1 . 1 1 . . . . Ballistic Cannon 3 | . 3 . . . . . . . . . Launcher 4 | . . . . . 1 . . 1 . 2 Special Weapon . | . . . . . . . . . . . Impact Weapon . | . . . . . . . . . . . Slashing Weapon 4 | . . . . . . 1 1 1 . 1 Piercing Weapon 3 | . . . . . . . . . 1 2 Special Melee Weapon . | . . . . . . . . . . . Unidentified Prototypes 11 | . . . . . 1 . . . 1 9 Parts Lost 20 | . 3 2 . . 4 1 . . . 10 Power 3 | . 1 . . . 1 . . . . 1 Propulsion 8 | . 1 1 . . . . . . . 6 Utility 5 | . . . . . 3 . . . . 2 Weapon 4 | . 1 1 . . . 1 . . . 1 Highest Loss Streak 8 | . 1 2 . . 2 1 . . . 8 Average Slot Usage (%) 92 | . 90 100 100 100 95 97 92 92 98 66 Engine 7 | . 5 14 14 14 6 1 7 7 7 . Treads 19 | . 27 28 28 28 17 25 . . . . Flight 4 | . . . . . . 4 30 30 30 9 Device 1 | . . . . . . . 7 7 7 8 Storage 23 | . 27 28 28 28 26 27 7 7 7 8 Processor 4 | . . . . . . 1 18 23 23 15 Protection 5 | . . . . . 23 12 . . 2 4 Energy Gun 2 | . 9 . . . . . . . . . Ballistic Gun 15 | . 14 28 28 28 17 12 . . . . Piercing Weapon 1 | . . . . . . . . . 6 5 Naked Turns . | . . . . . . . . . . . Heaviest Build 84 | 10 41 41 39 39 84 84 17 18 24 26 Greatest Support 91 | 20 43 43 43 43 43 91 24 18 24 28 Greatest Overweight (x) 1 | . . . . . 1 1 . . . 1 Average Overweight (x) . | . . . . . 1 . . . . . Largest Inventory Capacity 28 | 6 16 16 16 16 28 28 8 8 8 8 Average Capacity 14 | 6 12 16 16 16 21 25 8 8 8 5 Most Carried 28 | 6 16 16 16 16 28 28 8 8 8 8 Average Carried 13 | 6 11 15 15 15 20 24 7 8 7 4 Final Capacity 28 | 6 16 16 16 16 28 8 8 8 8 4 Final Carried 28 | 6 16 16 16 16 28 8 8 8 8 4 Class Distribution -------------------- 66% | Mutant 17% | Hauler-Mutant 8% | Sprinter 4% | Scavenger-Mutant Dominant Class ---------------- Mutant | -10/Materials Mutant | -10/Mines Mutant | -10/Exiles Mutant | -9/Mines Hauler-Mutant | -8/Materials Hauler-Mutant | -7/Factory Hacker-Sprinter | -7/Lower Caves Sprinter | -7/Lower Caves Sprinter | -7/Zion Mutant | -7/Deep Caves Resources | -11 -10 -10 -10 -9 -8 -7 -7 -7 -7 -7 ----------- Run | Scr Mat Min Exi Min Mat Fac Low Low Zio Dee Matter Collected 2277 | 210 501 286 . 30 654 101 30 144 68 253 Remotely . | . . . . . . . . . . . Salvage Created 3400 | 119 1101 622 . 130 749 231 30 116 . 302 Parts 183 | 6 57 52 . 3 34 8 1 7 . 15 Haulers Intercepted 5 | . 2 . . . 2 1 . . . . Recyclers Shooed 6 | . 1 . . 2 3 . . . . . Parts Field Recycled . | . . . . . . . . . . . Retrieved Matter . | . . . . . . . . . . . Parts Self-Destructed 6 | . . . . . . . 3 3 . . Prevented 2 | . . . . . . . 2 . . . Kills | -11 -10 -10 -10 -9 -8 -7 -7 -7 -7 -7 ------- Run | Scr Mat Min Exi Min Mat Fac Low Low Zio Dee Combat Hostiles Destroyed 56 | . 19 16 . . 8 1 . 4 . 8 Guns 37 | . 11 16 . . 6 1 . . . 3 Cannons 8 | . 8 . . . . . . . . . AOE 11 | . . . . . 2 . . 4 . 5 Classes Destroyed 15 | 2 6 . . 1 2 . 1 1 . 2 Worker 7 | . 1 1 . . 4 1 . . . . Tunneler 3 | 1 . 1 . . 1 . . . . . Hauler 5 | . 2 . . . 2 1 . . . . Recycler 15 | 1 5 4 . 1 3 1 . . . . Minesweeper 1 | . . . . . . . . 1 . . Operator 1 | . 1 . . . . . . . . . Watcher 2 | . 1 . . . 1 . . . . . Swarmer 20 | . 2 14 . . . . . 4 . . Grunt 25 | . 17 2 . . 6 . . . . . Sentry 2 | . . . . . 1 1 . . . . Hunter 1 | . . . . . 1 . . . . . Zionite 1 | . . . . 1 . . . . . . Z-Technician 5 | . . . . . . . . . . 5 Z-Light 2 | . . . . . . . . . . 2 Tinkerer 2 | . . . . . . . 1 1 . . Assembled 5 | . . . . . . . . . . 5 Best Kill Streak 5 | 1 3 5 . 1 4 2 . 4 . 5 Combat Bots Only 4 | . 3 3 . . 3 1 . 4 . 3 Max Kills in Single Turn 2 | 1 1 2 . 1 2 2 1 2 . 2 Gunslinging 1 | . . 1 . . . . . . . . Exploded 2 | . . . . . 1 . . 2 . 2 Melee . | . . . . . . . . . . . Uniques/NPCs Destroyed 1 | . . . . . . . . . . 1 Z-Imprinter (-7/Deep Caves) Combat | -11 -10 -10 -10 -9 -8 -7 -7 -7 -7 -7 -------- Run | Scr Mat Min Exi Min Mat Fac Low Low Zio Dee Damage Taken 4268 | . 712 364 . . 959 360 . 18 . 1855 Core 1006 | . 112 75 . . 77 25 . 18 . 699 Absorbed by Shields . | . . . . . . . . . . . Core Remaining (%) 70 | 100 . . . 25 86 . . . . . Volleys Fired 250 | 8 95 41 . 7 82 9 . 2 . 6 Largest 2 | 2 2 2 . 2 2 2 . 1 . 1 Hottest 80 | 80 80 40 . 40 40 40 . 33 . 33 Shots Fired 501 | 16 189 82 . 14 159 18 . 2 . 21 Gun 445 | 16 146 82 . 14 154 18 . . . 15 Cannon 43 | . 43 . . . . . . . . . Launcher 13 | . . . . . 5 . . 2 . 6 Special . | . . . . . . . . . . . Kinetic 374 | . 106 82 . 14 154 18 . . . . Thermal 106 | 16 75 . . . . . . . . 15 Explosive 13 | . . . . . 5 . . 2 . 6 Electromagnetic 8 | . 8 . . . . . . . . . Robot Hit Streak 18 | 7 14 9 . 3 18 10 . 11 . 6 Robot Miss Streak 5 | 5 5 3 . 1 4 1 . 1 . 3 Penetration Max . | . . . . . . . . . . . Secondary Targets 2 | . . 2 . . . . . . . . Max Gunslinging Chain 1 | . . 1 . . . . . . . . Autonomous 15 | . . . . . . . . . . 15 Shots Hit Robots 371 | 9 137 46 . 9 113 16 2 7 . 32 Core Hits 165 | 3 51 25 . 3 42 8 2 8 . 23 Critical Hits 4 | . . 3 . . . . . 1 . . Critical Kills 3 | . . 2 . . . . . 1 . . Critical Parts Destroyed 1 | . . 1 . . . . . . . . Melee Attacks 65 | . . . . . . . 5 12 13 35 Impact . | . . . . . . . . . . . Slashing 35 | . . . . . . . 5 12 9 9 Piercing 30 | . . . . . . . . . 4 26 Sneak Attacks 13 | . . . . . . . 2 3 . 8 Combat Hostiles . | . . . . . . . . . . . Follow-up Attacks 2 | . . . . . . . . . . 2 Damage Inflicted 7981 | 87 1756 691 . 95 1723 225 255 1039 . 2110 Guns 3983 | 87 1198 684 . 95 1322 214 . . . 383 Cannons 556 | . 556 . . . . . . . . . Explosions 1078 | . . . . . 388 . . 313 . 377 Melee 2331 | . . . . . . . 255 726 . 1350 Ramming 33 | . 2 7 . . 13 11 . . . . Kinetic 3354 | . 1039 684 . 95 1322 214 . . . . Thermal 1108 | 87 638 . . . . . . . . 383 Explosive 1078 | . . . . . 388 . . 313 . 377 Electromagnetic 77 | . 77 . . . . . . . . . Impact . | . . . . . . . . . . . Slashing 1455 | . . . . . . . 255 726 . 474 Piercing 876 | . . . . . . . . . . 876 Highest Corruption . | . . . . . . . . . . . Average Corruption . | . . . . . . . . . . . Corruption Purged . | . . . . . . . . . . . Overload Shots . | . . . . . . . . . . . Overflow Damage 576 | . 14 . . . . . . 239 . 323 Projectiles 14 | . 14 . . . . . . . . . Explosions 17 | . . . . . . . . . . 17 Melee 545 | . . . . . . . . 239 . 306 Knockbacks 8 | . 8 . . . . . . . . . Impact . | . . . . . . . . . . . Kinetic 8 | . 8 . . . . . . . . . Secondary . | . . . . . . . . . . . Self-Inflicted Damage . | . . . . . . . . . . . Shots . | . . . . . . . . . . . Rammed 6 | . 1 2 . . 1 2 . . . . Targets Rammed 7 | . 2 2 . . 1 2 . . . . Kicked . | . . . . . . . . . . . Crushed 1 | . 1 . . . . . . . . . Highest Temperature 360 | 54 153 . . . 360 12 . . . 22 Average Temperature 42 | 23 37 . . . 64 8 . . . 10 Received Heat Transfer 1245 | . 315 9 . . 315 102 . . . 504 Effects 3 | . . . . . 3 . . . . . Shutdowns 1 | . . . . . 1 . . . . . Energy Bleed 1 | . . . . . 1 . . . . . Damage (minor) 1 | . . . . . 1 . . . . . Siege Activations . | . . . . . . . . . . . Robots Corrupted . | . . . . . . . . . . . Combat Hostiles . | . . . . . . . . . . . Parts Fried 2 | . 2 . . . . . . . . . Impact Corruptions . | . . . . . . . . . . . Robots Melted . | . . . . . . . . . . . Combat Hostiles . | . . . . . . . . . . . Parts Melted 3 | . 2 . . . . . . . . 1 Heat Transferred 1944 | 200 1375 . . . . . . . . 369 Parts Sabotaged . | . . . . . . . . . . . Parts Stolen . | . . . . . . . . . . . Parts Stripped . | . . . . . . . . . . . Power Chain Reactions . | . . . . . . . . . . . Missiles Intercepted . | . . . . . . . . . . . Alert | -11 -10 -10 -10 -9 -8 -7 -7 -7 -7 -7 ------- Run | Scr Mat Min Exi Min Mat Fac Low Low Zio Dee Peak Influence 271 | 10 271 230 . 5 174 120 . . . . Initial 45 | . 6 45 . . 1 33 . . . . Average 107 | 4 154 100 . 2 62 75 . . . . Maximum Alert Level 1 | . 1 1 . . . . . . . . Low Security (%) 90 | 100 80 91 . 100 100 100 . . . . Level 1 9 | . 19 8 . . . . . . . . Level 2 . | . . . . . . . . . . . Level 3 . | . . . . . . . . . . . Level 4 . | . . . . . . . . . . . Level 5 . | . . . . . . . . . . . High Security . | . . . . . . . . . . . Max Security . | . . . . . . . . . . . Squads Dispatched 9 | . 8 . . . 1 . . . . . Investigation 5 | . 4 . . . 1 . . . . . Extermination . | . . . . . . . . . . . Reinforcement 4 | . 4 . . . . . . . . . Assault . | . . . . . . . . . . . Garrison . | . . . . . . . . . . . Intercept . | . . . . . . . . . . . Construction Impeded . | . . . . . . . . . . . Haulers Reinforced . | . . . . . . . . . . . Stealth | -11 -10 -10 -10 -9 -8 -7 -7 -7 -7 -7 --------- Run | Scr Mat Min Exi Min Mat Fac Low Low Zio Dee Distress Signals 2 | . 1 . . . 1 . . . . . Communications Jammed . | . . . . . . . . . . . Distress Signals . | . . . . . . . . . . . Times Spotted 125 | . 40 16 . . 21 2 2 1 . 43 Peak Tracking Total 37 | . 6 3 . . 4 1 3 2 . 37 Tactical Retreats 5 | . 2 3 . . . . . . . . Traps | -11 -10 -10 -10 -9 -8 -7 -7 -7 -7 -7 ------- Run | Scr Mat Min Exi Min Mat Fac Low Low Zio Dee Traps Triggered 4 | . 4 . . . . . . . . . Indirectly . | . . . . . . . . . . . Trap Hack Attempts . | . . . . . . . . . . . Triggered . | . . . . . . . . . . . Disarmed . | . . . . . . . . . . . Reprogrammed . | . . . . . . . . . . . Reused . | . . . . . . . . . . . Traps Extracted . | . . . . . . . . . . . Installed 2 | . . . . . . . . . . 2 Triggered . | . . . . . . . . . . . Fabricated Traps 2 | . . . . . . . . . 2 . Exploded 1 | . . . 1 . . . . . . . Machines | -11 -10 -10 -10 -9 -8 -7 -7 -7 -7 -7 ---------- Run | Scr Mat Min Exi Min Mat Fac Low Low Zio Dee Machines Disabled 4 | . 1 . . . . . . . 2 1 Max in Single Turn 1 | . 1 . . . . . . . 1 1 Machines Sabotaged . | . . . . . . . . . . . Garrisons Compromised . | . . . . . . . . . . . Overloaded Fab Kills . | . . . . . . . . . . . Fab Network Shutdowns . | . . . . . . . . . . . Hacking | -11 -10 -10 -10 -9 -8 -7 -7 -7 -7 -7 --------- Run | Scr Mat Min Exi Min Mat Fac Low Low Zio Dee Machines Accessed 14 | . 5 . 2 . 4 2 1 . . . Terminals 8 | . 3 . . . 3 2 . . . . Fabricators . | . . . . . . . . . . . Repair Stations . | . . . . . . . . . . . Recycling Units 3 | . 2 . . . 1 . . . . . Scanalyzers . | . . . . . . . . . . . Garrison Access . | . . . . . . . . . . . Total Hacks 33 | . 13 . 2 . 12 5 1 . . . Successful 20 | . 5 . 2 . 9 3 1 . . . Failed 13 | . 8 . . . 3 2 . . . . Catastrophic . | . . . . . . . . . . . Database Lockouts . | . . . . . . . . . . . Manual 21 | . 12 . 1 . 8 . . . . . Terminals 27 | . 11 . . . 11 5 . . . . Fabricators . | . . . . . . . . . . . Repair Stations . | . . . . . . . . . . . Recycling Units 3 | . 2 . . . 1 . . . . . Scanalyzers . | . . . . . . . . . . . Garrison Access . | . . . . . . . . . . . Terminal Hacks 12 | . 2 . 2 . 4 3 1 . . . Record 1 | . . . 1 . . . . . . . Robot Analysis 2 | . 2 . . . . . . . . . Prototype ID Bank 1 | . . . . . 1 . . . . . Open Door 1 | . . . . . . . 1 . . . Branch Access Points 1 | . . . . . . 1 . . . . Locate Traps 2 | . . . . . 1 1 . . . . Hauler Manifests 3 | . . . . . 2 1 . . . . EX-Prototype ID Bank 1 | . . . 1 . . . . . . . Fabricator Hacks . | . . . . . . . . . . . Repair Station Hacks . | . . . . . . . . . . . Recycling Unit Hacks . | . . . . . . . . . . . Scanalyzer . | . . . . . . . . . . . Garrison Access Hacks . | . . . . . . . . . . . Unauthorized Hacks 8 | . 3 . . . 5 . . . . . Terminals 5 | . 1 . . . 4 . . . . . Track 2 | . . . . . 2 . . . . . Botnet 2 | . 1 . . . 1 . . . . . Operators 1 | . . . . . 1 . . . . . Fabricators . | . . . . . . . . . . . Repair Stations . | . . . . . . . . . . . Recycling Units 3 | . 2 . . . 1 . . . . . Tunnel 3 | . 2 . . . 1 . . . . . Scanalyzers . | . . . . . . . . . . . Garrison Access . | . . . . . . . . . . . Data Cores Recovered . | . . . . . . . . . . . Used . | . . . . . . . . . . . Hacking Detections 8 | . 3 . . . 3 2 . . . . Full Trace Events . | . . . . . . . . . . . Feedback Events . | . . . . . . . . . . . Feedback Blocked . | . . . . . . . . . . . Robot Schematics Acquired . | . . . . . . . . . . . Robots Built . | . . . . . . . . . . . Matter . | . . . . . . . . . . . Time . | . . . . . . . . . . . Total Robot Build Rating . | . . . . . . . . . . . Part Schematics Acquired . | . . . . . . . . . . . Parts Built . | . . . . . . . . . . . Matter . | . . . . . . . . . . . Time . | . . . . . . . . . . . Total Part Build Rating . | . . . . . . . . . . . Parts Repaired . | . . . . . . . . . . . Time . | . . . . . . . . . . . Parts Recycled . | . . . . . . . . . . . Recycled Matter . | . . . . . . . . . . . Retrieved Matter . | . . . . . . . . . . . Retrieved Components . | . . . . . . . . . . . Parts Scanalyzed . | . . . . . . . . . . . Part Schematics Acquired . | . . . . . . . . . . . Parts Damaged . | . . . . . . . . . . . Bothacking | -11 -10 -10 -10 -9 -8 -7 -7 -7 -7 -7 ------------ Run | Scr Mat Min Exi Min Mat Fac Low Low Zio Dee Used RIF Installer . | . . . . . . . . . . . Robots Hacked . | . . . . . . . . . . . Non-combat . | . . . . . . . . . . . Combat . | . . . . . . . . . . . Robot Hacks Applied . | . . . . . . . . . . . Relay Couplers Released . | . . . . . . . . . . . Robots Rewired . | . . . . . . . . . . . Allies Hacked . | . . . . . . . . . . . Hacks Repelled . | . . . . . . . . . . . Allies | -11 -10 -10 -10 -9 -8 -7 -7 -7 -7 -7 -------- Run | Scr Mat Min Exi Min Mat Fac Low Low Zio Dee Total Allies 2 | . . 2 . . . . . . . . Largest Group 2 | . . 2 . . . . . . . . Highest-Rated Group 45 | . . 45 . . . . . . . . Highest-Rated Ally 31 | . . 31 . . . . . . . . Total Orders . | . . . . . . . . . . . Ally Attacks 5 | . . 5 . . . . . . . . Total Damage 80 | . . 80 . . . . . . . . Kills . | . . . . . . . . . . . Allies Corrupted . | . . . . . . . . . . . Allies Melted . | . . . . . . . . . . . Intel | -11 -10 -10 -10 -9 -8 -7 -7 -7 -7 -7 ------- Run | Scr Mat Min Exi Min Mat Fac Low Low Zio Dee Robot Analysis Total 2 | . 2 . . . . . . . . . Derelict Logs Recovered 7 | . . 2 . 1 . . 2 1 1 . Drone Launches . | . . . . . . . . . . . Drone Recoveries . | . . . . . . . . . . . Exploration | -11 -10 -10 -10 -9 -8 -7 -7 -7 -7 -7 ------------- Run | Scr Mat Min Exi Min Mat Fac Low Low Zio Dee Turns Passed 6705 | 61 1808 1265 531 59 1072 422 127 186 415 759 Spaces Moved 5090 | 30 860 665 327 21 409 258 344 503 959 714 Core 1 | . . . . . . . . . . 1 Treads 2455 | . 856 665 327 21 409 177 . . . . Legs 34 | 30 4 . . . . . . . . . Wheels . | . . . . . . . . . . . Hover 438 | . . . . . . . . . . 438 Flight 2162 | . . . . . . 81 344 503 959 275 Fastest Speed 26 | 120 120 160 160 160 180 29 26 29 26 26 Average Speed 96 | 120 159 160 160 160 180 118 28 29 26 50 Slowest Speed 180 | 120 160 160 160 160 180 160 29 29 29 105 Overloaded Moves . | . . . . . . . . . . . Propulsion Burnouts . | . . . . . . . . . . . Robots Hopped 3 | . . . . . . . 3 . . . Cave-ins Triggered . | . . . . . . . . . . . Exploration Rate (%) 54 | 2 93 100 68 11 36 6 53 66 83 83 Regions Visited 10 Branch Regions 7 Pre-discovered Areas 8 | . 2 2 1 1 1 . . . 1 . Known Exits Taken 4 | . . . . . . 1 1 1 1 . Unknown Exits Taken 6 | 1 1 1 1 1 1 . . . . . Scrap Searched 10 | . . 2 . . . . . 5 3 . Spaces Dug 21 | . . . . . . . 3 6 4 8 Terrain Destroyed 100 | . . . . . 42 . 3 23 4 28 Melee 19 | . . . . . . . 3 6 4 6 Projectile . | . . . . . . . . . . . AOE 81 | . . . . . 42 . . 17 . 22 Terrain Rammed . | . . . . . . . . . . . Walls Destroyed . | . . . . . . . . . . . Machines Disabled . | . . . . . . . . . . . Actions | -11 -10 -10 -10 -9 -8 -7 -7 -7 -7 -7 --------- Run | Scr Mat Min Exi Min Mat Fac Low Low Zio Dee Total 6328 | 38 1120 788 337 34 584 366 364 527 1112 1058 Wait 658 | . 88 65 1 2 57 50 13 9 123 250 Move 5074 | 29 859 664 326 20 408 257 337 502 958 714 Hop 3 | . . . . . . . 3 . . . Pick Up 82 | . 29 5 4 2 19 5 2 . 6 10 Fast Attach 29 | 1 7 . . . 4 2 . . 5 10 Attach 39 | . 5 2 1 1 6 14 2 . . 8 Detach 4 | . . . . . 1 . . . . 3 Swap 21 | . 10 3 . . 3 1 . 2 . 2 Drop 99 | . 25 6 5 2 3 26 2 . 10 20 Fire 250 | 8 95 41 . 7 82 9 . 2 . 6 Melee 60 | . . . . . . . 5 12 10 33 Ram . | . . . . . . . . . . . Kick . | . . . . . . . . . . . Crush 7 | . 2 2 . . 1 2 . . . . Escape Stasis . | . . . . . . . . . . . Rewire . | . . . . . . . . . . . Trap 2 | . . . . . . . . . . 2 Miscellaneous . | . . . . . . . . . . . Route ------- -11/Scrapyard -10/Materials (discovered 4 exits: [*Mat x2] / [*Min x2]) -10/Mines (discovered 3 exits: [*Mat x2] / *Exi) -10/Exiles -9/Mines -8/Materials -7/Factory (discovered 4 exits: Sto x2 / *Low x2) -7/Lower Caves -7/Lower Caves -7/Zion (discovered 2 exits: *Dee / [*Pro]) -7/Deep Caves (discovered 1 exit: [*Pro]) History --------- Turn | Location | Event 10 | -11/Scrapyard | Discovered new exit (range 2) 62 | -11/Scrapyard | Entered Materials 299 | -10/Materials | Discovered new exit (range 14) 300 | -10/Materials | Build established: Mutant 543 | -10/Materials | Discovered new exit (range 11) 863 | -10/Materials | Discovered new exit (range 10) 1304 | -10/Materials | Discovered new exit (range 8) 1870 | -10/Materials | Entered Mines 2019 | -10/Mines | Learned location of Recycling (-7) 2039 | -10/Mines | Discovered new exit (range 7) 2232 | -10/Mines | Discovered new exit (range 9) 2235 | -10/Mines | Learned Materials terminal intel 2259 | -10/Mines | Deemed a non-threat by the Exiles lab entrance 2259 | -10/Mines | Discovered new exit (range 5) 2393 | -10/Mines | Learned location of Storage (-7) 2630 | -10/Mines | Core integrity fell below 50% 3135 | -10/Mines | Entered Exiles 3175 | -10/Exiles | Met 8R-AWN 3201 | -10/Exiles | Met EX-HEX 3276 | -10/Exiles | Met EX-DEC 3302 | -10/Exiles | Learned location of Zion (-7) 3434 | -10/Exiles | Met EX-BIN 3457 | -10/Exiles | Aligned with FarCom system 3458 | -10/Exiles | Given EX-Vault access code 3495 | -10/Exiles | Opened EX-Vault 3504 | -10/Exiles | Found Longsword +1 3513 | -10/Exiles | Found AWS/Thermal 3549 | -10/Exiles | Warned to stay clear of 0b10 Research branches 3565 | -10/Exiles | Exiles lab attacked by MAIN.C 3652 | -10/Exiles | Discovered new exit (range 10) 3666 | -10/Exiles | Stole two prototypes: AWS/Thermal, Longsword +1 3666 | -10/Exiles | Entered Mines 3666 | -9/Mines | Discovered new exit (range 11) 3688 | -9/Mines | Received a Rocket Launcher from a helpful Derelict 3725 | -9/Mines | Entered Materials 3725 | -8/Materials | Evolved 4 slots: Utility x4 3726 | -8/Materials | Loaded intel: 12 terminal locations 4253 | -8/Materials | Build established: Hauler-Mutant 4460 | -8/Materials | Discovered new exit (range 10) 4797 | -8/Materials | Entered Factory 4797 | -7/Factory | Evolved 2 slots: Propulsion x2 4799 | -7/Factory | FarCom data flow suspended 4895 | -7/Factory | Identified exit to Storage 4895 | -7/Factory | Identified exit to Lower Caves 5219 | -7/Factory | Entered Lower Caves 5226 | -7/Lower Caves | Learned Factory emergency access door positions 5345 | -7/Lower Caves | Discovered new exit (range 4) 5346 | -7/Lower Caves | Identified exit to Lower Caves 5346 | -7/Lower Caves | Entered another Lower Caves area 5514 | -7/Lower Caves | Learned Factory emergency access door positions 5529 | -7/Lower Caves | Discovered new exit (range 11) 5532 | -7/Lower Caves | Identified exit to Zion 5532 | -7/Lower Caves | Entered Zion 5545 | -7/Zion | Found CR-A16's Pointy Stick 5557 | -7/Zion | Discovered new exit (range 15) 5656 | -7/Zion | Learned 12 Factory zone layouts 5723 | -7/Zion | Given the Hacking Drone Bay 5723 | -7/Zion | Found Prototype Device 5796 | -7/Zion | Found Prototype Device 5796 | -7/Zion | Identified Bomb Factory No. 2 5946 | -7/Zion | Discovered new exit (range 5) 5946 | -7/Zion | Saw the warning signs outside the Deep Caves entrance 5947 | -7/Zion | Identified exit to Deep Caves 5947 | -7/Zion | Entered Deep Caves 5986 | -7/Deep Caves | Identified Hacking Drone Bay 6010 | -7/Deep Caves | Attacked by Z-Imprinter 6031 | -7/Deep Caves | Core integrity fell below 50% 6038 | -7/Deep Caves | Core integrity fell below 20% 6051 | -7/Deep Caves | Destroyed Z-Imprinter 6072 | -7/Deep Caves | Found Prototype Device 6072 | -7/Deep Caves | Identified Zio. Metafield Generator 6079 | -7/Deep Caves | Lost 8 parts (1p4n2u1w) 6082 | -7/Deep Caves | Found Prototype Protection 6082 | -7/Deep Caves | Identified Zio. Weapon Casing 6332 | -7/Deep Caves | Found Zio. Weapon Casing 6358 | -7/Deep Caves | Found Prototype Protection 6358 | -7/Deep Caves | Identified Zio. Heavy Carapace 6483 | -7/Deep Caves | Z-Facility disabled 6595 | -7/Deep Caves | Discovered new exit (range 7) 6656 | -7/Deep Caves | Build established: Mutant 6705 | -7/Deep Caves | Spotted as-78507 6706 | -7/Deep Caves | Triggered Deep Caves wall 6706 | -7/Deep Caves | Spotted AS-10606 6706 | -7/Deep Caves | Found Field Lobotomy Kit 6706 | -7/Deep Caves | Destroyed by as-78507 with Assembled Focal Cannon Last Messages --------------- 06437_ Acquired Zio. Light Carapace. 06440_ Acquired Zio. Weapon Casing. 06463_ Acquired Mak. Hacking Suite. 06466_ Acquired 2 matter. 06473_ Acquired Mak. Hacking Suite. 06482_ Acquired 8 matter. 06483_ Z-Facility disabled. 06543_ as-97858 destroyed. 06545_ as-91204 destroyed. 06545_ as-23138 destroyed. 06552_ Acquired 8 matter. 06595_ EXIT=FOUND 06697_ Dropped Zio. Weapon Casing. 06699_ Dropped Zio. Light Carapace. 06699_ Dropped Zio. Heavy Carapace. 06702_ Dropped Med. Storage Unit. 06706_ The wall dematerializes. 06706_ Acquired Field Lobotomy Kit. 06706_ Zio. Glidesys II destroyed. 06706_ Imp. Flight Unit destroyed. Map ----- +----------------------------------------------------+ | | | | | | | | | ?????????????????????????????????????????? | | ?????????????????????????????????????????? | | ?????????????????????????????????????????? | | ?????????????????????????????????????????? | | ?????????????????????????????????????????? | | ???????????????????????????????????????#?? | | ??????????????? # ???????????????????? ?? | | ????????????? ? #????????????????# #? | | ?????????? # #??#?????????????# #? | | ?????????? #? #?????????????# #? | | ????????""" #? #????????#????# #? | | ????????"G ## #????????# ???# ## | | ????????" # ####?????# ### ## | | ????????" ??????# | | ????????# ???????# | | ?????????" ????????###### ## | | ?????????" ##?????????????# ## | | ?????????" ??????????????# #? | | ?????????" #?###???????????# #? | | ????????"" #?# #???????????# #? | | ??????### = =g ### ####????????# #? | | ??????" a = @ # #?######?# ## | | ??"A a aaa g ##??## ### | | ??" aaaaaa h###" ##### | | ???aa aaaa !!!!# #### | | ??? aa aaa == !#### | | ????aaaaa g #### ### | | ????aa aa ! lg = ## ##?###### | | ???? a a ## ##??????? | | ?????""a b ## ##?????? | | ??????### = ## ###???? | | ????????"" ! ## ##??? | | ?????????" * * ## ##?? | | ?????????" * ### #?? | | ?????????" * ### ### | | ?????????? ]* ! ### | | ???????????? ** ] #?## | | ???????????? #### #### | | ???????????? ] ] ## #?## | | ???????????? #### | | ???????????? !! ##?# | | ????????????? ! #??# | | ????????????? #### ##??## | | ?????????????? #??####????# | | ?????????????? ##??????????## | | ?????????????? # # ?????????????# | +----------------------------------------------------+ Best States ------------- Heat Dissipation 34 Energy Generation 15 Energy Capacity 1100 Matter Stores 300 Matter Capacity 300 Sight Range 16 Robot Scan Range 20 Terrain Scan Range 16 Terrain Scan Density 10 Armor Coverage 1600 Evasion (%) 64 Melee Accuracy 12 Recoil Reduction 4 Offensive Hacking 10 Defensive Hacking 10 Item Schematics ----------------- None Robot Schematics ------------------ None Fabricated ------------ Nothing Alien Tech Used ----------------- None Achievements -------------- None Challenges ------------ None Game ------ Seed InsulationRecyclingProjector Manual? 0 Play Time 01:13:25 Cumulative 761.2 hours Start 2020.10.09 @ 16:35:25 End 2020.10.09 @ 19:51:48 Sessions 3 Manual Loads 0 Difficulty Rogue Special Mode None Game No. 481 Rogue 481 Adventurer 0 Explorer 0 Win Type - Total 112 Types 76/7/8/10/5/1/4/0/1 Lore% 96 Gallery% 94 Achievement% 81 Wizard Run 0 Options --------- ASCII 0 Keyboard 0 Movement Numpad Keybinds 0 Fullscreen 2 Font 18/SmallcapsGlow Map View 76x50 Tactical HUD 1 Map Filters NONE Filters NONE Steam 1 RUN: 9ff42361-5d59-4463-b611-1eadac8c2823